bitfinex/quotes_SOLUSD_20250919
["timestamp","ask_amount","ask_price","bid_price","bid_amount"]
[1758320709774,31.2,239.25,239.24,17.77549703]
[1758320711053,0.1,239.27,239.24,17.77549703]
[1758320711380,0.1,239.27,239.25,31.84]
[1758320711561,0.1,239.27,239.26,13.59559401]
[1758320711961,0.1,239.27,239.26,14.25559401]
[1758320713467,0.1,239.27,239.26,17.77514763]
[1758320715973,0.1,239.27,239.26,18.43514763]
[1758320716852,0.1,239.27,239.26,17.77514763]
[1758320717971,0.1,239.27,239.26,30.05049662]
[1758320718669,0.1,239.27,239.26,30.71049662]
[1758320719695,0.1,239.27,239.26,30.05049662]
[1758320720575,0.1,239.27,239.26,25.870943]
[1758320721380,0.1,239.27,239.26,30.05049662]
[1758320747275,0.8,239.27,239.26,30.05049662]
[1758320747485,0.1,239.27,239.26,30.71049662]
[1758320747783,0.1,239.27,239.26,30.05049662]
[1758320756916,0.1,239.27,239.26,30.71049662]
[1758320757492,0.1,239.27,239.26,30.05049662]
[1758320775928,0.82,239.27,239.26,30.05049662]
[1758320776633,0.1,239.27,239.26,30.05049662]
[1758320776814,0.82,239.27,239.26,30.05049662]
[1758320777124,0.1,239.27,239.26,30.05049662]
[1758320781104,0.82,239.27,239.26,30.05049662]
[1758320782611,0.82,239.27,239.26,61.87049662]
[1758320783228,0.82,239.27,239.26,30.05049662]
[1758320783434,0.82,239.27,239.26,61.87049662]
[1758320787038,0.82,239.27,239.26,25.870943]
[1758320787335,0.82,239.27,239.26,57.690943]
[1758320795127,0.82,239.27,239.26,25.870943]
[1758320795324,13.39202724,239.27,239.26,57.690943]
[1758320797017,13.39202724,239.27,239.26,45.41559401]
[1758320800629,13.39202724,239.27,239.26,13.59559401]
[1758320800832,13.39202724,239.27,239.26,45.41559401]
[1758320803949,13.39202724,239.27,239.26,13.59559401]
[1758320804148,13.39202724,239.27,239.26,45.41559401]
[1758320806250,13.39202724,239.27,239.26,13.59559401]
[1758320806442,13.39202724,239.27,239.26,45.41559401]
[1758320807047,12.67202724,239.27,239.26,45.41559401]
[1758320807345,12.67202724,239.27,239.26,49.59514763]
[1758320810447,13.39202724,239.27,239.26,49.59514763]
[1758320810833,12.67202724,239.27,239.26,49.59514763]
[1758320811150,12.67202724,239.27,239.26,50.25514763]
[1758320814654,0.1,239.27,239.26,50.25514763]
[1758320823241,0.1,239.27,239.26,52.60113699]
[1758320826564,0.1,239.27,239.26,133.40113699]
[1758320828161,0.34515717,239.29,239.26,143.85002104]
[1758320828370,0.34515717,239.29,239.27,14.25559401]
[1758320828671,0.34515717,239.29,239.28,45.39559401]
[1758320828876,0.34515717,239.29,239.28,47.07123232]
[1758320829561,0.34515717,239.29,239.28,47.73123232]
[1758320830342,0.34515717,239.29,239.28,51.25043659]
[1758320831956,0.34515717,239.29,239.28,19.45043659]
[1758320832856,0.34515717,239.29,239.28,51.25043659]
[1758320834169,0.34515717,239.29,239.28,19.45043659]
[1758320834367,0.34515717,239.29,239.28,49.57479828]
[1758320838979,0.34515717,239.29,239.28,130.37479828]
[1758320847302,1.77570851,239.33,239.29,13.59559401]
[1758320847588,0.1,239.33,239.31,13.59559401]
[1758320847769,0.1,239.33,239.32,45.39559401]
[1758320848284,36.17833117,239.33,239.31,2.57570851]
[1758320848599,35.47833117,239.33,239.31,31.19]
[1758320849168,12.57255411,239.32,239.31,31.19]
[1758320849376,16.75105987,239.32,239.31,31.19]
[1758320855372,16.75105987,239.32,239.31,44.78559401]
[1758320871007,16.75105987,239.32,239.31,13.59559401]
[1758320871206,16.75105987,239.32,239.31,45.71559401]
[1758320873014,18.00559259,239.32,239.31,45.71559401]
[1758320873917,18.00559259,239.32,239.31,45.69559401]
[1758320874695,18.00559259,239.32,239.31,13.59559401]
[1758320875016,18.00559259,239.32,239.31,45.69559401]
[1758320877193,20.82709572,239.32,239.31,46.35559401]
[1758320877409,18.00559259,239.32,239.31,46.35559401]
[1758320883804,20.82724519,239.32,239.31,46.31559401]
[1758320884122,18.00559259,239.32,239.31,46.31559401]
[1758320885414,20.82729195,239.32,239.31,46.31559401]
[1758320886318,20.82729195,239.32,239.31,14.25559401]
[1758320886519,20.82729195,239.32,239.31,46.31559401]
[1758320891217,20.82729195,239.32,239.29,0.67]
[1758320891218,31.2,239.3,239.29,0.67]
[1758320891418,39.45655898,239.3,239.29,14.26559401]
[1758320891606,39.45655898,239.3,239.29,46.30559401]
[1758320892125,52.02964001,239.3,239.29,46.30559401]
[1758320892335,52.02964001,239.3,239.16,162.4]
[1758320892336,67.49490837,239.3,239.25,0.67]
[1758320892508,2.82317127,239.29,239.26,13.59559401]
[1758320892715,2.82317127,239.28,239.26,45.65559401]
[1758320892913,31.2,239.25,239.24,13.59559401]
[1758320893109,34.02317127,239.25,239.24,45.65559401]
[1758320893311,2.82317127,239.25,239.24,45.65559401]
[1758320893517,13.83024901,239.25,239.24,45.65559401]
[1758320893722,16.65342028,239.25,239.24,46.32559401]
[1758320893916,20.83314859,239.25,239.24,46.32559401]
[1758320894242,18.00997732,239.25,239.24,46.32559401]
[1758320897723,18.00997732,239.25,239.24,14.26559401]
[1758320897933,18.00997732,239.25,239.24,46.32559401]
[1758320908339,49.20997732,239.25,239.24,46.32559401]
[1758320910236,49.20997732,239.25,239.24,14.26559401]
[1758320910446,49.20997732,239.25,239.24,46.30559401]
[1758320910737,49.20997732,239.25,239.24,14.26559401]
[1758320910941,49.20997732,239.25,239.24,46.28559401]
[1758320911142,49.20997732,239.25,239.24,14.26559401]
[1758320911341,49.20997732,239.25,239.24,46.28559401]
[1758320913748,49.20997732,239.25,239.24,45.61559401]
[1758320915739,47.9554446,239.25,239.24,45.61559401]
[1758320916242,16.7554446,239.25,239.24,45.61559401]
[1758320916747,16.7554446,239.25,239.24,13.59559401]
[1758320922150,16.7554446,239.25,239.24,14.31559401]
[1758320925057,16.7554446,239.25,239.24,13.59559401]
[1758320925551,16.7554446,239.25,239.24,14.31559401]
[1758320927755,58.40476539,239.25,239.21,0.72]
[1758320927932,32.45453272,239.22,239.21,0.72]
[1758320928132,32.45453272,239.22,239.21,46.29559401]
[1758320928329,45.0318307,239.22,239.21,46.29559401]
[1758320928739,45.0318307,239.22,239.21,14.31559401]
[1758320928941,45.0318307,239.22,239.21,0.72]
[1758320929342,49.21208318,239.22,239.21,0.72]
[1758320931861,49.91900364,239.22,239.21,0.72]
[1758320935583,52.74032752,239.22,239.2,13.59559401]
[1758320935776,6.14188041,239.21,239.2,14.28559401]
[1758320936776,18.71917839,239.21,239.2,14.28559401]
[1758320938260,21.54195576,239.21,239.2,14.28559401]
[1758320946794,21.54195576,239.21,239.19,13.59559401]
[1758320947087,38.20337937,239.2,239.19,14.30559401]
[1758320947485,50.78120466,239.2,239.19,14.30559401]
[1758320955813,50.78120466,239.2,239.18,31.98]
[1758320956107,50.78120466,239.2,239.16,0.71]
[1758320956108,31.2,239.18,239.17,45.53559401]
[1758320956304,33.16145318,239.18,239.17,46.24559401]
[1758320956714,1.96145318,239.18,239.17,46.24559401]
[1758320956890,33.16145318,239.18,239.17,45.55559401]
[1758320957626,45.74086069,239.18,239.17,45.55559401]
[1758320957803,49.92181227,239.18,239.17,45.55559401]
[1758320958306,52.74146323,239.18,239.17,13.59559401]
[1758320958715,49.92181227,239.18,239.17,13.59559401]
[1758320958908,52.74121633,239.18,239.17,13.59559401]
[1758320959311,49.92181227,239.18,239.17,13.59559401]
[1758320960228,52.74113187,239.18,239.17,13.59559401]
[1758320960429,49.92181227,239.18,239.17,13.59559401]
[1758320962134,52.74091288,239.18,239.17,13.59559401]
[1758320962609,47.96035909,239.18,239.17,14.30559401]
[1758320962805,49.92181227,239.18,239.17,14.30559401]
[1758320965235,52.74111823,239.18,239.17,14.30559401]
[1758320965441,49.92181227,239.18,239.17,14.30559401]
[1758320966242,52.74123051,239.18,239.17,14.30559401]
[1758320969237,52.74123051,239.18,239.17,14.28559401]
[1758320973138,63.19360947,239.18,239.15,31.94]
[1758320973334,31.2,239.15,239.14,14.28559401]
[1758320973643,33.16145318,239.15,239.14,14.28559401]
[1758320973823,45.74244331,239.15,239.14,14.28559401]
[1758320974412,49.92391937,239.15,239.14,14.28559401]
[1758320983549,52.74527255,239.15,239.12,31.94]
[1758320983745,1.96145318,239.13,239.12,32.63]
[1758320983955,1.96145318,239.13,239.12,31.94]
[1758320984327,1.96145318,239.13,239.12,32.65]
[1758320984528,6.14327896,239.13,239.12,32.65]
[1758320984758,18.7258521,239.13,239.12,32.65]
[1758320987539,18.7258521,239.13,239.12,0.69]
[1758320989431,21.54702656,239.13,239.12,0.69]
[1758320989631,18.7258521,239.13,239.12,0.69]
[1758320992363,18.7258521,239.13,239.11,0.1]
[1758320992540,1.96145318,239.12,239.11,14.38559401]
[1758320993257,14.54402632,239.12,239.11,14.38559401]
[1758320993658,14.54402632,239.12,239.11,0.79]
[1758320993964,18.02089398,239.12,239.11,0.79]
[1758320994138,25.86729098,239.12,239.11,0.1]
[1758320994339,20.84201026,239.12,239.11,0.79]
[1758320995045,20.84201026,239.12,239.11,0.1]
[1758320996165,20.84201026,239.12,239.11,0.76]
[1758320997553,25.86729098,239.12,239.11,0.76]
[1758320998364,25.86729098,239.12,239.11,0.1]
[1758321003580,25.86729098,239.12,239.11,0.81]
[1758321004071,25.86729098,239.12,239.11,0.1]
[1758321005662,20.84201026,239.12,239.11,0.1]
[1758321006369,20.84201026,239.12,239.11,0.81]
[1758321007269,20.84201026,239.12,239.11,0.1]
[1758321013868,25.86729098,239.12,239.11,0.1]
[1758321015384,25.86729098,239.12,239.11,0.81]
[1758321021213,25.86729098,239.12,239.11,0.1]
[1758321021486,25.86729098,239.12,239.11,0.81]
[1758321021876,20.84201026,239.12,239.11,0.81]
[1758321024468,18.02089398,239.12,239.11,0.81]
[1758321024762,20.84323732,239.12,239.11,0.81]
[1758321036011,20.84323732,239.12,239.11,0.1]
[1758321037407,25.86851804,239.12,239.11,0.1]
[1758321042109,25.86851804,239.12,239.11,1e-08]
[1758321042913,29.39644722,239.12,239.11,1e-08]
[1758321043210,25.86851804,239.12,239.11,1e-08]
[1758321043917,29.39644722,239.12,239.11,1e-08]
[1758321044216,25.86851804,239.12,239.11,1e-08]
[1758321046414,31.2,239.09,239.07,0.91]
[1758321046605,35.27866352,239.08,239.07,0.2]
[1758321047099,47.86598808,239.08,239.07,0.91]
[1758321047718,52.04868843,239.08,239.07,0.91]
[1758321048617,52.04868843,239.08,239.07,14.50559401]
[1758321048618,47.86598808,239.08,239.07,14.50559401]
[1758321049004,16.66598808,239.08,239.07,14.50559401]
[1758321050814,20.84868843,239.08,239.07,14.50559401]
[1758321053825,21.55616142,239.08,239.07,14.50559401]
[1758321056602,17.37346107,239.08,239.07,14.50559401]
[1758321064238,15.4096679,239.08,239.07,14.50559401]
[1758321065124,12.58732456,239.08,239.07,14.50559401]
[1758321065512,14.55111773,239.08,239.07,14.50559401]
[1758321066325,14.55111773,239.08,239.07,13.79559401]
[1758321066533,17.37521259,239.08,239.07,13.79559401]
[1758321067726,21.55791294,239.08,239.07,13.79559401]
[1758321068942,21.55791294,239.08,239.07,14.49559401]
[1758321069537,21.55791294,239.08,239.07,13.79559401]
[1758321071042,21.55791294,239.08,239.07,0.2]
[1758321072529,53.51791294,239.08,239.07,1e-08]
[1758321087829,51.55411977,239.08,239.07,1e-08]
[1758321088157,53.51791294,239.08,239.07,1e-08]
[1758321088545,21.55791294,239.08,239.07,1e-08]
[1758321088767,53.59791294,239.08,239.07,1e-08]
[1758321089447,21.55791294,239.08,239.07,0.72000001]
[1758321089632,53.63791294,239.08,239.07,0.72000001]
[1758321090034,53.63791294,239.08,239.07,1e-08]
[1758321091943,21.55791294,239.08,239.07,1e-08]
[1758321092156,53.61791294,239.08,239.07,1e-08]
[1758321102742,53.61437041,239.08,239.07,1e-08]
[1758321103771,57.14006082,239.08,239.07,1e-08]
[1758321107266,57.14006082,239.08,239.07,0.72000001]
[1758321108765,57.14006082,239.08,239.07,1e-08]
[1758321111176,31.2,239.06,239.05,0.72]
[1758321111377,68.0243455,239.06,239.01,0.1]
[1758321111561,2.82055233,239.05,239.01,0.1]
[1758321111761,2.82055233,239.04,239.01,0.1]
[1758321111964,31.2,239.02,239.01,0.1]
[1758321112262,38.20430264,239.02,239.01,0.1]
[1758321112461,40.16809581,239.02,239.01,0.82]
[1758321112868,52.75647674,239.02,239.01,0.82]
[1758321113858,52.05017159,239.02,239.01,0.82]
[1758321116670,50.79268357,239.02,239.01,0.82]
[1758321116981,52.05017159,239.02,239.01,0.82]
[1758321123357,52.05546348,239.02,239.01,0.82]
[1758321132993,52.05546348,239.02,239.01,0.1]
[1758321133174,52.05546348,239.02,239.01,0.81]
[1758321148618,50.79797546,239.02,239.01,0.81]
[1758321148789,50.79797546,239.02,239.01,14.40559401]
[1758321148790,47.87171317,239.02,239.01,14.40559401]
[1758321149092,46.61422515,239.02,239.01,14.40559401]
[1758321149696,2.82584422,239.02,239.01,14.40559401]
[1758321150092,34.02584422,239.02,239.01,14.40559401]
[1758321150707,2.82584422,239.02,239.01,14.40559401]
[1758321151109,34.02584422,239.02,239.01,14.40559401]
[1758321152213,46.6121126,239.02,239.01,14.40559401]
[1758321156809,43.78626838,239.02,239.01,14.40559401]
[1758321157813,43.78626838,239.02,239.01,46.36559401]
[1758321158801,12.58626838,239.02,239.01,46.36559401]
[1758321159009,12.58626838,239.02,239.01,50.54951936]
[1758321159317,31.2,239.03,239.02,13.59559401]
[1758321159627,12.58415655,239.05,239.02,14.29559401]
[1758321159819,2.82447402,239.04,239.03,14.29559401]
[1758321160120,12.58415655,239.05,239.04,13.59559401]
[1758321160350,15.40850865,239.05,239.04,13.59559401]
[1758321160621,15.40850865,239.05,239.04,14.29559401]
[1758321161425,12.58415655,239.05,239.04,14.29559401]
[1758321168420,12.58415655,239.05,239.04,46.23559401]
[1758321169427,12.58415655,239.05,239.04,14.29559401]
[1758321169621,12.58415655,239.05,239.04,46.23559401]
[1758321170935,12.58415655,239.05,239.04,14.29559401]
[1758321171108,12.58415655,239.05,239.04,46.23559401]
[1758321175242,16.76738181,239.05,239.02,80.8]
[1758321175441,16.76738181,239.05,239.03,13.59559401]
[1758321175734,31.2,239.04,239.03,45.53559401]
[1758321175917,49.93323149,239.04,239.03,13.59559401]
[1758321176539,49.93323149,239.04,239.03,45.53559401]
[1758321180216,47.96966864,239.04,239.03,46.23559401]
[1758321180536,47.96966864,239.04,239.03,14.29559401]
[1758321180738,47.96966864,239.04,239.03,46.23559401]
[1758321184746,47.96966864,239.04,239.03,14.29559401]
[1758321184950,47.96966864,239.04,239.03,46.23559401]
[1758321187754,47.96966864,239.04,239.03,14.29559401]
[1758321187958,47.96966864,239.04,239.03,46.23559401]
[1758321188356,47.96966864,239.04,239.03,14.29559401]
[1758321188563,47.96966864,239.04,239.03,46.23559401]
[1758321190841,47.96966864,239.04,239.03,14.29559401]
[1758321191032,47.96966864,239.04,239.03,46.23559401]
[1758321191948,47.96966864,239.04,239.03,14.29559401]
[1758321192235,47.96966864,239.04,239.03,46.23559401]
[1758321195363,50.79381907,239.04,239.03,46.23559401]
[1758321196462,50.79381907,239.04,239.03,14.29559401]
[1758321196657,50.79381907,239.04,239.03,46.23559401]
[1758321196852,47.96966864,239.04,239.03,46.23559401]
[1758321197638,47.96966864,239.04,239.03,14.29559401]
[1758321197841,47.96966864,239.04,239.03,46.23559401]
[1758321199259,43.78626838,239.04,239.03,46.23559401]
[1758321199859,31.2,239.04,239.03,46.23559401]
[1758321200058,31.2,239.05,239.03,46.23559401]
[1758321200359,43.78415655,239.05,239.04,14.29559401]
[1758321200544,46.60970752,239.05,239.04,14.29559401]
[1758321201748,43.78415655,239.05,239.04,14.29559401]
[1758321203675,43.78415655,239.05,239.04,46.23559401]
[1758321205155,43.78415655,239.05,239.04,14.29559401]
[1758321205360,43.78415655,239.05,239.04,46.23559401]
[1758321207558,43.78415655,239.05,239.04,14.29559401]
[1758321207875,43.78415655,239.05,239.04,46.23559401]
[1758321210268,43.78415655,239.05,239.04,14.29559401]
[1758321210476,43.78415655,239.05,239.04,46.23559401]
[1758321211470,31.2,239.05,239.04,14.29559401]
[1758321211770,31.2,239.05,239.04,46.23559401]
[1758321212676,31.2,239.05,239.04,14.29559401]
[1758321212877,31.2,239.05,239.04,46.23559401]
[1758321213566,31.2,239.05,239.04,14.29559401]
[1758321213768,31.2,239.05,239.04,46.23559401]
[1758321215669,31.2,239.05,239.04,14.29559401]
[1758321215980,31.2,239.05,239.04,46.23559401]
[1758321216576,31.2,239.05,239.04,14.29559401]
[1758321216780,31.2,239.05,239.04,46.23559401]
[1758321220072,31.2,239.05,239.04,14.29559401]
[1758321220282,31.2,239.05,239.04,46.23559401]
[1758321233905,31.2,239.05,239.04,14.29559401]
[1758321234199,31.2,239.05,239.04,46.23559401]
[1758321235307,31.2,239.05,239.04,14.29559401]
[1758321235502,31.2,239.05,239.04,46.23559401]
[1758321243719,35.38322526,239.05,239.04,13.59559401]
[1758321243917,38.21035976,239.05,239.04,45.51559401]
[1758321244109,50.79610012,239.05,239.04,45.51559401]
[1758321247113,50.79610012,239.05,239.04,13.59559401]
[1758321247323,50.79610012,239.05,239.04,45.51559401]
[1758321247718,50.79610012,239.05,239.04,13.59559401]
[1758321247925,50.79610012,239.05,239.04,45.51559401]
[1758321250017,50.79610012,239.05,239.04,46.20559401]
[1758321250326,50.79610012,239.05,239.04,45.51559401]
[1758321251328,50.79610012,239.05,239.04,46.20559401]
[1758321251513,50.79610012,239.05,239.04,45.51559401]
[1758321261638,50.79610012,239.05,239.04,13.59559401]
[1758321261822,50.79610012,239.05,239.04,45.51559401]
[1758321262435,50.79610012,239.05,239.04,13.59559401]
[1758321262634,50.79610012,239.05,239.04,45.51559401]
[1758321263138,52.05274441,239.05,239.04,46.20559401]
[1758321265826,52.05274441,239.05,239.04,45.51559401]
[1758321266635,52.05274441,239.05,239.04,46.17559401]
[1758321267711,50.79610012,239.05,239.04,46.17559401]
[1758321267914,52.05274441,239.05,239.04,46.17559401]
[1758321287565,50.79610012,239.05,239.04,46.17559401]
[1758321287757,52.05274441,239.05,239.04,46.17559401]
[1758321289068,50.79610012,239.05,239.04,46.17559401]
[1758321289276,47.86951915,239.05,239.04,46.17559401]
[1758321290068,52.05274441,239.05,239.04,46.17559401]
[1758321290253,47.86951915,239.05,239.04,46.17559401]
[1758321290566,52.05274441,239.05,239.04,46.17559401]
[1758321291263,46.61287486,239.05,239.04,46.17559401]
[1758321291471,4.08377879,239.05,239.04,46.17559401]
[1758321295577,1.25664429,239.05,239.04,46.17559401]
[1758321295780,1.96375456,239.05,239.04,46.17559401]
[1758321306297,6.14697982,239.05,239.04,46.17559401]
[1758321306502,18.73113637,239.05,239.04,46.17559401]
[1758321310094,18.73113637,239.05,239.04,14.25559401]
[1758321310393,18.73113637,239.05,239.04,46.17559401]
[1758321315106,16.76738181,239.05,239.04,46.17559401]
[1758321315309,18.73113637,239.05,239.04,46.17559401]
[1758321320721,18.73113637,239.05,239.04,45.51559401]
[1758321321426,18.73113637,239.05,239.04,46.19559401]
[1758321322422,21.55630035,239.05,239.04,46.19559401]
[1758321331140,21.55630035,239.05,239.04,14.27559401]
[1758321331439,21.55630035,239.05,239.04,46.17559401]
[1758321333047,19.59254579,239.05,239.04,46.17559401]
[1758321333225,21.55630035,239.05,239.04,46.17559401]
[1758321335449,21.55630035,239.05,239.04,14.27559401]
[1758321335650,21.55630035,239.05,239.04,46.17559401]
[1758321335850,17.37307509,239.05,239.04,46.17559401]
[1758321336634,14.54791111,239.05,239.04,46.17559401]
[1758321336834,17.37468418,239.05,239.04,46.17559401]
[1758321338452,21.55790944,239.05,239.04,46.17559401]
[1758321339146,21.55791013,239.05,239.04,46.17559401]
[1758321346460,19.59415557,239.05,239.04,46.17559401]
[1758321346840,21.55791013,239.05,239.04,46.17559401]
[1758321348556,12.58415655,239.05,239.04,46.17559401]
[1758321348742,1.96375456,239.08,239.05,13.59559401]
[1758321349057,33.16375456,239.08,239.07,13.59559401]
[1758321349255,33.16375456,239.08,239.07,46.21559401]
[1758321349653,45.74632769,239.08,239.07,46.21559401]
[1758321352337,43.78257313,239.08,239.07,46.21559401]
[1758321352550,45.74632769,239.08,239.07,46.21559401]
[1758321357841,45.03895164,239.08,239.07,46.21559401]
[1758321362767,45.03895164,239.08,239.07,50.39846931]
[1758321367477,45.03895164,239.08,239.07,46.21559401]
[1758321370583,43.78257313,239.08,239.07,50.39846931]
[1758321370882,32.45637851,239.08,239.07,50.39846931]
[1758321371063,32.45637851,239.08,239.07,46.21559401]
[1758321371260,1.25637851,239.08,239.07,46.19559401]
[1758321375185,45.03736863,239.09,239.07,46.19559401]
[1758321375367,45.03736863,239.09,239.08,14.27559401]
[1758321375768,45.03736863,239.09,239.08,95.07559401]
[1758321390493,45.03736863,239.09,239.08,94.39559401]
[1758321390901,52.04399505,239.09,239.08,45.47559401]
[1758321392888,52.04399505,239.09,239.08,13.59559401]
[1758321393100,51.94043482,239.09,239.08,13.59559401]
[1758321395111,50.68405631,239.09,239.08,13.59559401]
[1758321395294,51.94043482,239.09,239.08,13.59559401]
[1758321410234,50.68405631,239.09,239.08,13.59559401]
[1758321410408,51.94043482,239.09,239.08,13.59559401]
[1758321415207,51.94043482,239.09,239.08,14.28559401]
[1758321417131,51.94043482,239.09,239.08,13.59559401]
[1758321419810,52.64793747,239.09,239.08,13.59559401]
[1758321420135,52.64793747,239.09,239.08,14.26559401]
[1758321429619,52.64793747,239.09,239.08,13.59559401]
[1758321430416,52.64793747,239.09,239.08,14.26559401]
[1758321432542,52.64793747,239.09,239.08,13.59559401]
[1758321433130,52.64793747,239.09,239.08,14.26559401]
[1758321446343,52.64793747,239.09,239.07,13.59559401]
[1758321446344,63.10425099,239.09,239.07,13.59559401]
[1758321446550,2.82410102,239.08,239.06,13.59559401]
[1758321446739,4.78798218,239.07,239.06,13.59559401]
[1758321447147,17.37372254,239.07,239.06,13.59559401]
[1758321447728,21.55659784,239.07,239.06,13.59559401]
[1758321450331,32.01378611,239.07,239.06,0.7]
[1758321463148,32.01378611,239.07,239.06,14.29559401]
[1758321463349,21.55659784,239.07,239.06,14.29559401]
[1758321464356,19.59271668,239.07,239.06,14.29559401]
[1758321464557,21.55659784,239.07,239.06,14.29559401]
[1758321465163,17.37372254,239.07,239.06,46.15559401]
[1758321465562,15.40984138,239.07,239.06,46.15559401]
[1758321465760,17.37372254,239.07,239.06,46.15559401]
[1758321467158,48.57372254,239.07,239.06,46.15559401]
[1758321468568,46.60984138,239.07,239.06,46.15559401]
[1758321468873,48.57372254,239.07,239.06,46.15559401]
[1758321479192,45.74962152,239.07,239.06,46.15559401]
[1758321480355,12.58574036,239.07,239.06,50.33864429]
[1758321480569,4.18166685,239.14,239.07,13.59559401]
[1758321480777,31.2,239.11,239.08,31.86]
[1758321481054,2.82381659,239.1,239.08,31.86]
[1758321481250,2.82381659,239.09,239.08,45.45559401]
[1758321481474,2.82381659,239.1,239.08,45.45559401]
[1758321481671,12.5831009,239.09,239.08,45.45559401]
[1758321481876,13.83958862,239.09,239.08,45.45559401]
[1758321482478,13.83958862,239.09,239.08,46.14559401]
[1758321487890,12.5831009,239.09,239.08,46.14559401]
[1758321488091,18.02211402,239.09,239.08,45.45559401]
[1758321488608,18.02211402,239.09,239.08,13.59559401]
[1758321488900,31.2,239.06,239.03,13.59559401]
[1758321489077,31.2,239.06,239.01,0.1]
[1758321489280,35.3825254,239.09,239.05,13.59559401]
[1758321489492,31.2,239.06,239.05,13.59559401]
[1758321489875,35.38305028,239.06,239.05,13.59559401]
[1758321490492,49.22475037,239.06,239.05,13.59559401]
[1758321493905,49.22475037,239.06,239.05,14.28559401]
[1758321494382,52.0461775,239.06,239.05,14.28559401]
[1758321498106,49.22475037,239.06,239.05,14.28559401]
[1758321499979,4.18218253,239.11,239.05,18.46881927]
[1758321500187,4.72634842,239.18,239.07,13.59559401]
[1758321500188,1.25648772,239.08,239.07,13.59559401]
[1758321500387,1.25648772,239.08,239.07,46.14559401]
[1758321500913,13.84011641,239.08,239.07,46.14559401]
[1758321504812,12.58362869,239.08,239.07,46.14559401]
[1758321505018,13.84011641,239.08,239.07,46.14559401]
[1758321507607,13.84011641,239.08,239.07,14.28559401]
[1758321507806,13.84011641,239.08,239.07,46.14559401]
[1758321512713,1.25648772,239.08,239.07,46.14559401]
[1758321514814,7.00496499,239.09,239.07,46.14559401]
[1758321515000,1.25648772,239.08,239.07,45.45559401]
[1758321515499,1.25648772,239.08,239.07,46.17559401]
[1758321531828,32.45648772,239.08,239.07,46.17559401]
[1758321534230,32.45648772,239.08,239.07,14.31559401]
[1758321534430,32.45648772,239.08,239.07,46.17559401]
[1758321536930,32.45648772,239.08,239.07,14.31559401]
[1758321537134,32.45648772,239.08,239.07,46.17559401]
[1758321539338,32.45648772,239.08,239.07,14.31559401]
[1758321539521,32.45648772,239.08,239.07,46.15559401]
[1758321539916,32.45648772,239.08,239.07,14.31559401]
[1758321540116,1.25648772,239.08,239.07,45.43559401]
[1758321540336,4.08103506,239.08,239.07,45.43559401]
[1758321540634,35.28103506,239.08,239.07,45.43559401]
[1758321540841,32.45648772,239.08,239.07,45.43559401]
[1758321541033,32.45648772,239.08,239.07,46.12559401]
[1758321541340,35.28181767,239.08,239.07,46.12559401]
[1758321541736,35.98873886,239.08,239.07,46.12559401]
[1758321542537,35.98873886,239.08,239.07,45.43559401]
[1758321544115,40.17143921,239.08,239.07,13.59559401]
[1758321544924,52.75612365,239.08,239.07,13.59559401]
[1758321558871,50.79271474,239.08,239.07,14.28559401]
[1758321559177,52.75612365,239.08,239.07,14.28559401]
[1758321567870,50.79271474,239.08,239.07,14.28559401]
[1758321568063,52.75612365,239.08,239.07,14.28559401]
[1758321569170,52.75612365,239.08,239.07,14.29559401]
[1758321574368,46.61001439,239.08,239.07,14.29559401]
[1758321574682,48.5734233,239.08,239.07,14.29559401]
[1758321575984,46.61001439,239.08,239.07,46.13559401]
[1758321576194,15.41001439,239.08,239.07,46.13559401]
[1758321576823,17.3734233,239.08,239.07,46.13559401]
[1758321582207,17.3734233,239.08,239.07,14.29559401]
[1758321582410,17.3734233,239.08,239.07,46.13559401]
[1758321583724,17.3734233,239.08,239.07,14.29559401]
[1758321584020,17.3734233,239.08,239.07,46.13559401]
[1758321587025,17.3734233,239.08,239.07,14.29559401]
[1758321587202,17.3734233,239.08,239.07,46.13559401]
[1758321589921,4.78873886,239.08,239.07,46.13559401]
[1758321597227,4.78873886,239.08,239.07,50.31846931]
[1758321599046,2.82532995,239.08,239.07,50.31846931]
[1758321599348,33.16340891,239.12,239.08,13.59559401]
[1758321599519,2.82257972,239.11,239.1,13.59559401]
[1758321599924,2.82257972,239.11,239.1,14.31559401]
[1758321600311,45.74439903,239.12,239.1,14.31559401]
[1758321600511,12.58099012,239.12,239.11,46.15559401]
[1758321600738,2.82249366,239.12,239.11,46.15559401]
[1758321601032,2.82249366,239.12,239.11,50.33776957]
[1758321601426,2.82249366,239.13,239.12,13.59559401]
[1758321602110,43.78046254,239.13,239.12,13.59559401]
[1758321602315,46.6029562,239.13,239.12,14.31559401]
[1758321604541,50.78478198,239.13,239.1,31.84]